bitfinex/quotes_SOLUSD_20251204
["timestamp","ask_amount","ask_price","bid_price","bid_amount"]
[1764809909797,7.66,145.17,145.16,16.56889504]
[1764809909995,6.88723747,145.2,145.16,0.87]
[1764809909996,9.44040433,145.2,145.16,0.87]
[1764809910209,7.66,145.19,145.17,0.67]
[1764809911109,14.54774607,145.19,145.17,0.67]
[1764809912407,7.66,145.19,145.17,0.67]
[1764809912805,7.66,145.19,145.16,0.2]
[1764809913112,7.66,145.19,145.16,0.87]
[1764809913287,17.10069379,145.19,145.16,0.87]
[1764809913901,16.308864,145.15,145.09,0.87]
[1764809914109,24.10634365,145.19,145.13,2.55316686]
[1764809914297,24.10634365,145.19,145.14,15.69984432]
[1764809914298,7.66,145.18,145.14,15.69984432]
[1764809914504,7.66,145.18,145.14,18.92301118]
[1764809914707,7.66,145.18,145.15,0.67]
[1764809915014,7.66,145.18,145.16,8.80994492]
[1764809915314,7.66,145.18,145.16,11.36311178]
[1764809915491,7.66,145.18,145.17,9.47994492]
[1764809916212,7.66,145.18,145.17,16.3684205]
[1764809917643,7.66,145.2,145.18,8.80994492]
[1764809917794,7.66,145.2,145.18,9.47994492]
[1764809918116,7.66,145.2,145.19,0.67]
[1764809923525,7.66,145.2,145.19,9.47994492]
[1764809923726,7.66,145.2,145.19,16.3674716]
[1764809928005,25.747828,145.23,145.19,16.3674716]
[1764809928224,25.747828,145.23,145.2,0.69]
[1764809928225,7.66,145.22,145.2,0.69]
[1764809928826,14.54615774,145.22,145.19,9.49994492]
[1764809929133,14.54615774,145.22,145.2,0.69]
[1764809930602,0.7,145.21,145.18,8.80994492]
[1764809930805,17.7993246,145.22,145.18,9.49994492]
[1764809931205,17.7993246,145.22,145.19,0.69]
[1764809934631,2.55316686,145.21,145.18,0.69]
[1764809934833,0.7,145.21,145.18,0.69]
[1764809935535,7.58675919,145.21,145.18,0.69]
[1764809938236,10.13992605,145.21,145.18,0.69]
[1764809938432,0.7,145.2,145.17,15.69824687]
[1764809938624,7.66,145.19,145.17,16.38824687]
[1764809938818,10.21316686,145.19,145.15,0.69]
[1764809939021,0.7,145.18,145.15,0.69]
[1764809939330,2.55316686,145.18,145.15,0.69]
[1764809939814,9.44126218,145.18,145.15,0.69]
[1764809940438,3.25316686,145.17,145.14,0.69]
[1764809940639,10.19316686,145.16,145.13,8.80994492]
[1764809940833,10.19316686,145.16,145.13,9.49994492]
[1764809941031,10.89316686,145.16,145.13,9.49994492]
[1764809941227,2.55316686,145.14,145.09,0.89]
[1764809941427,0.7,145.15,145.09,0.89]
[1764809941428,7.66,145.13,145.09,0.89]
[1764809941635,2.55316686,145.11,145.09,0.89]
[1764809941841,2.55316686,145.12,145.09,0.89]
[1764809942343,2.55316686,145.11,145.1,0.69]
[1764809942742,15.25077545,145.13,145.1,0.69]
[1764809942939,2.55316686,145.12,145.1,0.69]
[1764809943439,15.25077545,145.13,145.1,0.69]
[1764809943640,2.55316686,145.12,145.1,0.69]
[1764809943840,2.55316686,145.13,145.1,7.58177442]
[1764809944045,7.66,145.15,145.11,8.80994492]
[1764809944232,10.21316686,145.15,145.12,0.69]
[1764809945121,7.66,145.17,145.13,8.80994492]
[1764809945337,7.66,145.17,145.15,8.80994492]
[1764809945536,10.21316686,145.17,145.15,8.80994492]
[1764809945743,10.21316686,145.17,145.11,11.36311178]
[1764809945918,10.21316686,145.17,145.14,0.19]
[1764809946501,17.10177785,145.17,145.14,0.19]
[1764809946645,17.80177785,145.17,145.14,0.19]
[1764809947949,15.24861099,145.17,145.14,0.19]
[1764809949541,14.54861099,145.17,145.14,0.19]
[1764809949749,14.54861099,145.17,145.14,8.99994492]
[1764809949926,11.36311178,145.2,145.15,0.69]
[1764809950248,7.66,145.19,145.15,3.24316686]
[1764809950646,18.86203086,145.16,145.11,8.80994492]
[1764809950847,2.55316686,145.14,145.11,8.80994492]
[1764809951146,3.25316686,145.14,145.11,8.80994492]
[1764809951531,10.14324399,145.14,145.11,8.80994492]
[1764809953134,7.59007713,145.14,145.11,8.80994492]
[1764809955342,0.7,145.14,145.11,16.38124889]
[1764809955740,16.308864,145.16,145.12,0.68]
[1764809955958,7.66,145.15,145.12,3.23316686]
[1764809956259,7.66,145.15,145.12,0.68]
[1764809956434,7.66,145.15,145.13,0.68]
[1764809956828,17.80259159,145.15,145.11,16.38124889]
[1764809957045,15.24942473,145.15,145.11,15.70124889]
[1764809957261,15.24942473,145.15,145.12,0.68]
[1764809958251,14.54942473,145.15,145.12,0.68]
[1764809958459,15.24942473,145.15,145.12,0.68]
[1764809959135,15.24942473,145.15,145.12,7.57079833]
[1764809959136,7.66,145.15,145.12,7.57079833]
[1764809959652,7.66,145.15,145.13,0.68]
[1764809960159,14.54943496,145.15,145.12,0.68]
[1764809960346,0.7,145.14,145.1,7.57162933]
[1764809960546,3.25316686,145.14,145.11,9.48994492]
[1764809961851,0.7,145.14,145.11,9.48994492]
[1764809962047,3.25316686,145.14,145.11,9.48994492]
[1764809962361,4.69021836,145.14,145.11,9.48994492]
[1764809962685,11.58015485,145.14,145.11,9.48994492]
[1764809963058,11.58015485,145.14,145.11,8.80994492]
[1764809964557,11.58015485,145.14,145.11,9.48994492]
[1764809966565,4.69021836,145.13,145.09,9.00994492]
[1764809966742,16.37948109,145.15,145.11,15.70126874]
[1764809966937,7.66,145.14,145.12,0.68]
[1764809967138,8.36,145.14,145.11,16.38126874]
[1764809967366,12.35021836,145.14,145.11,9.48994492]
[1764809967547,12.35021836,145.14,145.09,0.88]
[1764809967548,4.69021836,145.13,145.09,0.88]
[1764809967941,0.7,145.12,145.09,0.88]
[1764809968144,7.66,145.11,145.09,0.88]
[1764809968558,19.24171614,145.11,145.09,0.2]
[1764809968937,18.54171614,145.11,145.09,0.2]
[1764809969546,14.55149778,145.11,145.09,0.2]
[1764809969740,15.25149778,145.11,145.09,0.2]
[1764809969962,19.24171614,145.11,145.09,0.2]
[1764809970343,15.25149778,145.11,145.09,0.2]
[1764809970541,19.24171614,145.11,145.09,0.2]
[1764809971474,7.66,145.11,145.09,7.09217951]
[1764809971761,7.66,145.11,145.1,9.48994492]
[1764809972165,7.66,145.11,145.1,8.80994492]
[1764809972341,8.36,145.11,145.09,0.2]
[1764809972967,7.66,145.11,145.09,0.2]
[1764809973657,14.55139642,145.11,145.09,0.2]
[1764809973865,15.25139642,145.11,145.09,0.2]
[1764809974071,4.69021836,145.1,145.09,0.2]
[1764809975765,11.58201711,145.1,145.09,0.2]
[1764809975969,9.48994492,145.13,145.09,40.63182216]
[1764809976144,0.7,145.18,145.12,3.99021836]
[1764809976341,8.36,145.18,145.13,3.99021836]
[1764809976752,8.36,145.18,145.15,8.80994492]
[1764809977156,8.36,145.18,145.11,0.68]
[1764809977157,0.7,145.17,145.11,0.68]
[1764809977362,4.69021836,145.17,145.12,3.99021836]
[1764809977568,6.88895012,145.16,145.12,10.88097556]
[1764809977756,7.66,145.15,145.12,7.5707572]
[1764809977945,7.66,145.15,145.12,11.56097556]
[1764809979458,14.549469,145.15,145.12,3.99021836]
[1764809979654,14.549469,145.15,145.12,8.80994492]
[1764809979845,0.65,145.14,145.12,8.80994492]
[1764809980972,14.549469,145.15,145.12,8.80994492]
[1764809981151,15.199469,145.15,145.12,8.80994492]
[1764809982276,8.31,145.15,145.12,10.8810524]
[1764809982690,7.66,145.15,145.12,11.5410524]
[1764809982869,7.66,145.15,145.13,0.66]
[1764809983088,7.66,145.15,145.14,12.80016328]
[1764809984574,7.66,145.15,145.14,20.35006268]
[1764809986395,8.35,145.15,145.12,19.69093143]
[1764809988769,8.35,145.15,145.12,20.35093143]
[1764809990382,7.66,145.15,145.12,13.46016328]
[1764809990785,7.66,145.15,145.12,20.35099005]
[1764809994074,7.66,145.15,145.13,13.46016328]
[1764809994387,7.66,145.15,145.13,12.80016328]
[1764809996272,7.66,145.15,145.13,19.69038106]
[1764809996583,7.66,145.15,145.13,12.80016328]
[1764809996584,8.35,145.15,145.13,12.80016328]
[1764809996905,0.69,145.15,145.13,12.80016328]
[1764809997084,7.66,145.14,145.13,12.80016328]
[1764809997771,7.66,145.14,145.13,15.70031906]
[1764809997970,7.66,145.14,145.13,19.69053742]
[1764809998592,7.66,145.14,145.13,12.80016328]
[1764809998798,7.66,145.14,145.09,0.2]
[1764809998799,35.5391925,145.14,145.09,0.2]
[1764809998975,3.99021836,145.11,145.09,0.2]
[1764809999178,7.66,145.1,145.09,0.2]
[1764810000223,39.50783814,145.14,145.1,8.80994492]
[1764810000379,7.66,145.13,145.1,12.80025855]
[1764810000575,12.34031363,145.13,145.09,0.2]
[1764810000895,3.99031363,145.1,145.09,0.2]
[1764810001092,11.65031363,145.1,145.09,0.2]
[1764810001272,12.34031363,145.1,145.09,0.2]
[1764810001897,19.23211238,145.1,145.09,0.2]
[1764810002495,7.66,145.1,145.09,0.2]
[1764810002684,8.35,145.1,145.09,0.2]
[1764810003275,7.66,145.1,145.09,0.2]
[1764810005603,19.23211238,145.1,145.09,0.2]
[1764810006276,36.46942533,145.1,145.09,0.2]
[1764810009079,36.46942533,145.1,145.09,1e-08]
[1764810011101,41.1279757,145.1,145.09,1e-08]
[1764810011403,52.77828933,145.1,145.09,1e-08]
[1764810011599,35.54097638,145.1,145.09,1e-08]
[1764810011800,7.66,145.1,145.09,1e-08]
[1764810017907,42.34383669,145.14,145.09,13.47025856]
[1764810017908,21.01917763,145.14,145.09,13.47025856]
[1764810018112,3.99031363,145.11,145.09,1e-08]
[1764810018284,7.66,145.1,145.09,1e-08]
[1764810018898,7.66,145.1,145.09,4.66031364]
[1764810019905,7.66,145.1,145.09,20.36253232]
[1764810020090,7.66,145.1,145.09,16.37221869]
[1764810020406,7.66,145.1,145.09,20.36253232]
[1764810020602,7.66,145.1,145.09,16.37221869]
[1764810023703,7.66,145.15,145.1,8.80994492]
[1764810023908,0.72,145.16,145.1,8.80994492]
[1764810023909,7.66,145.14,145.12,8.80994492]
[1764810024410,7.66,145.14,145.12,9.47994492]
[1764810024806,0.72,145.13,145.1,9.47994492]
[1764810024998,3.27411771,145.13,145.1,8.80994492]
[1764810025509,2.55411771,145.13,145.1,8.80994492]
[1764810025711,3.27411771,145.13,145.1,8.80994492]
[1764810026210,0.72,145.13,145.1,8.80994492]
[1764810027114,0.72,145.13,145.09,7.56227377]
[1764810027115,10.16473209,145.13,145.09,7.56227377]
[1764810027609,0.72,145.12,145.09,7.56227377]
[1764810027789,7.66,145.11,145.09,7.56227377]
[1764810031513,7.66,145.11,145.09,1e-08]
[1764810031689,15.27135098,145.11,145.09,1e-08]
[1764810031894,7.66,145.11,145.1,0.67]
[1764810032211,7.66,145.11,145.1,9.47994492]
[1764810032410,7.66,145.11,145.09,1e-08]
[1764810032411,17.82544153,145.11,145.09,1e-08]
[1764810032584,3.27411771,145.1,145.09,1e-08]
[1764810033397,10.16591646,145.1,145.09,1e-08]
[1764810035608,7.66,145.1,145.09,1e-08]
[1764810037314,10.93411771,145.1,145.09,1e-08]
[1764810037627,17.82591646,145.1,145.09,1e-08]
[1764810041399,15.27179875,145.1,145.09,1e-08]
[1764810041597,17.82591646,145.1,145.09,1e-08]
[1764810045735,34.13478046,145.1,145.09,1e-08]
[1764810045920,17.82591646,145.1,145.09,1e-08]
[1764810050229,16.308864,145.07,145.01,0.2]
[1764810050532,2.55411771,145.02,145.01,0.2]
[1764810050713,10.21411771,145.02,145.01,0.2]
[1764810051338,7.66,145.02,145.01,0.85]
[1764810051635,2.55411771,145.05,145.01,16.55602105]
[1764810051824,16.308864,145.07,145.01,16.55602105]
[1764810051825,7.66,145.04,145.02,9.45994492]
[1764810052025,7.66,145.04,145.03,0.65]
[1764810052225,23.20237181,145.07,145.03,0.65]
[1764810052417,2.55411771,145.04,145.01,0.85]
[1764810052612,2.55411771,145.03,145.01,0.2]
[1764810052837,40.43543171,145.07,145.01,0.2]
[1764810052838,10.21411771,145.02,145.01,0.2]
[1764810053019,7.66,145.02,145.01,0.2]
[1764810053939,7.66,145.02,145.01,0.85]
[1764810054138,7.66,145.02,145.01,0.2]
[1764810055539,10.89411771,145.02,145.01,0.2]
[1764810055717,17.78971831,145.02,145.01,0.2]
[1764810058044,34.09858231,145.02,145.01,0.2]
[1764810064055,33.40899847,145.02,145.01,0.2]
[1764810065441,34.09858231,145.02,145.01,0.2]
[1764810066557,34.09858231,145.02,145.01,1e-08]
[1764810066860,26.43858231,145.02,145.01,1e-08]
[1764810067066,34.09858231,145.02,145.01,1e-08]
[1764810067843,26.43858231,145.02,145.01,1e-08]
[1764810068067,34.09858231,145.02,145.01,1e-08]
[1764810068970,17.10971831,145.02,145.01,1e-08]
[1764810069367,9.44971831,145.02,145.01,1e-08]
[1764810069563,9.44971831,145.02,145.01,0.65000001]
[1764810069564,7.66,145.02,145.01,0.65000001]
[1764810071363,2.55411771,145.06,145.01,0.65000001]
[1764810071543,7.66,145.05,145.01,7.54593813]
[1764810071745,7.66,145.05,145.02,8.80994492]
[1764810072056,7.66,145.05,145.02,9.45994492]
[1764810072261,7.66,145.05,145.03,0.65]
[1764810074356,7.66,145.05,145.03,7.54511941]
[1764810074756,7.66,145.05,145.04,7.58464975]
[1764810075661,7.66,145.05,145.04,0.69]
[1764810078177,10.21411771,145.05,145.02,0.69]
[1764810078365,2.55411771,145.04,145.02,0.69]
[1764810078877,3.25411771,145.04,145.01,1e-08]
[1764810079081,2.55411771,145.03,145.01,1e-08]
[1764810079380,7.66,145.02,145.01,1e-08]
[1764810079581,17.80971831,145.02,145.01,1e-08]
[1764810080262,17.80971831,145.02,145.0,0.2]
[1764810080470,16.308864,144.99,144.97,0.2]
[1764810080674,10.21411771,144.98,144.97,0.2]
[1764810080986,10.91411771,144.98,144.97,0.2]
[1764810081484,10.91411771,144.98,144.91,7.59052232]
[1764810081485,10.21411771,144.98,144.92,8.80994492]
[1764810081787,10.21411771,144.98,144.89,36.3167375]
[1764810081788,2.55411771,144.93,144.89,0.89]
[1764810081984,10.21411771,144.92,144.89,0.89]
[1764810082159,2.55411771,144.91,144.89,0.89]
[1764810082363,7.66,144.92,144.9,0.69]
[1764810082558,10.21411771,144.92,144.89,0.2]
[1764810082761,2.55411771,144.9,144.89,0.2]
[1764810083083,2.55411771,144.9,144.89,0.89]
[1764810083276,2.55411771,144.9,144.89,0.2]
[1764810083684,2.55411771,144.91,144.89,0.89]
[1764810084373,12.36296597,144.92,144.89,0.89]
[1764810084571,4.00296597,144.94,144.9,9.49994492]
[1764810084764,7.66,144.93,144.9,13.50291089]
[1764810085085,7.66,144.93,144.91,0.69]
[1764810085791,7.66,144.93,144.9,8.80994492]
[1764810086086,7.66,144.93,144.9,9.49994492]
[1764810086785,10.61706054,144.92,144.89,0.2]
[1764810086989,10.61706054,144.94,144.9,0.69]
[1764810087188,7.66,144.93,144.9,0.69]
[1764810087390,7.66,144.93,144.9,7.59121392]
[1764810088097,18.97706054,144.92,144.89,9.00994492]
[1764810088290,18.97706054,144.92,144.89,0.2]
[1764810088472,0.7,144.91,144.89,0.2]
[1764810088795,10.61706054,144.9,144.89,0.2]
[1764810089372,0.7,144.93,144.89,0.2]
[1764810089695,10.61706054,144.91,144.89,0.89]
[1764810089991,7.66,144.9,144.89,7.79169746]
[1764810090591,10.61706054,144.93,144.9,8.80994492]
[1764810090791,23.20784431,144.95,144.9,20.11700546]
[1764810090792,7.66,144.92,144.9,20.11700546]
[1764810091091,7.66,144.93,144.91,11.30706054]
[1764810091292,7.66,144.93,144.92,0.69]
[1764810092185,7.66,144.93,144.92,7.59035881]
[1764810093294,7.66,144.93,144.92,0.69]
[1764810093892,7.66,144.93,144.92,7.59035881]
[1764810094397,7.66,144.93,144.92,18.20741935]
[1764810096505,7.66,144.93,144.92,27.01736427]
[1764810099707,7.66,144.93,144.92,16.40030373]
[1764810099906,7.66,144.93,144.92,27.01736427]
[1764810100123,7.66,144.96,144.93,8.80994492]
[1764810100427,7.66,144.97,144.96,8.80994492]
[1764810100710,7.66,144.99,144.96,19.42700546]
[1764810100920,7.66,144.99,144.97,11.29706054]
[1764810101282,7.66,144.99,144.98,0.68]
[1764810101899,7.66,144.99,144.98,7.5775031]
[1764810102088,7.66,145.01,144.98,27.00450856]
[1764810102287,7.66,145.01,144.99,0.68]
[1764810102724,29.80835488,145.03,145.0,19.42700546]
[1764810103018,7.66,145.03,145.02,10.61706054]
[1764810103813,7.66,145.03,145.01,11.29706054]
[1764810104388,14.55514941,145.03,145.0,10.61706054]
[1764810104587,14.55514941,145.03,145.0,11.29706054]
[1764810104887,7.66,145.03,145.01,10.61706054]
[1764810105094,7.66,145.03,145.02,10.61706054]
[1764810105405,7.66,145.03,145.0,7.57654255]
[1764810105602,7.66,145.03,145.01,10.61706054]
[1764810107414,7.66,145.03,145.02,10.61706054]
[1764810107719,6.89429313,145.05,145.02,11.29706054]
[1764810108013,7.66,145.03,145.02,10.61706054]
[1764810108201,7.66,145.03,145.02,11.29706054]
[1764810108389,7.66,145.03,145.02,13.48439507]
[1764810108807,7.66,145.03,145.02,20.37999567]
[1764810109621,23.20170838,145.08,145.03,8.80994492]
[1764810109822,7.66,145.07,145.03,0.68]
[1764810109997,8.33,145.07,145.03,3.99445015]
[1764810110190,0.67,145.06,145.03,3.99445015]
[1764810110389,0.67,145.06,144.99,8.80994492]
[1764810110612,3.99445015,145.05,144.99,8.80994492]
[1764810110816,6.8956006,145.02,144.98,3.99445015]
[1764810111019,7.66,145.01,144.98,3.99445015]
[1764810111325,7.66,145.01,144.95,16.308864]
[1764810111326,3.99445015,145.0,144.95,8.80994492]
[1764810111527,0.67,144.99,144.96,3.99445015]
[1764810111693,7.66,144.98,144.96,3.99445015]
[1764810111893,7.66,144.98,144.95,11.57303689]
[1764810112114,7.66,144.98,144.96,3.99445015]
[1764810112321,0.67,144.97,144.95,10.89303689]
[1764810112499,8.33,144.98,144.95,10.89303689]
[1764810112901,0.67,144.97,144.94,3.99445015]
[1764810113101,0.67,144.97,144.94,8.80994492]
[1764810113302,0.67,144.97,144.93,11.5740092]
[1764810114792,7.56714816,144.99,144.95,3.99445015]
[1764810115106,7.66,144.96,144.93,15.70966585]
[1764810115310,7.66,144.96,144.94,10.89374605]
[1764810115516,7.66,144.96,144.95,3.99445015]
[1764810115705,8.33,144.96,144.94,3.99445015]
[1764810115909,7.66,144.96,144.94,10.89373134]
[1764810117390,7.66,144.96,144.94,11.57373134]
[1764810117592,7.56574287,145.02,144.95,13.48439507]
[1764810117894,7.56574287,145.02,144.99,3.99445015]
[1764810117895,7.66,145.01,144.99,3.99445015]
[1764810118401,0.67,145.04,145.0,11.28097389]
[1764810118605,7.66,145.01,145.0,0.68]
[1764810118795,7.66,145.01,144.96,10.60097389]
[1764810118796,18.26097389,145.01,144.96,10.60097389]
[1764810118999,11.27097389,145.0,144.95,20.09091881]
[1764810119201,0.67,145.0,144.96,10.60097389]
[1764810119399,7.56658682,145.0,144.96,18.17936739]
[1764810119797,8.33,144.99,144.96,10.60097389]
[1764810120340,8.33,144.99,144.96,17.49939607]
[1764810120998,8.33,144.99,144.96,6.89842218]
[1764810121516,10.60097389,145.03,144.98,19.41091881]
[1764810121717,7.66,145.02,144.99,10.60097389]
[1764810122215,8.33,145.02,144.99,0.68]
[1764810122422,8.33,145.02,144.96,10.60097389]
[1764810122423,11.27097389,145.01,144.96,10.60097389]
[1764810122603,10.60097389,145.0,144.96,8.80994492]
[1764810122804,7.66,144.99,144.96,20.09091881]
[1764810123416,7.66,144.99,144.96,9.48994492]
[1764810123616,7.66,144.99,144.96,16.38837587]
[1764810124220,7.66,144.99,144.96,26.98934976]
[1764810124426,7.66,144.99,144.96,16.38837587]
[1764810125119,8.33,144.99,144.96,8.80994492]
[1764810125322,6.89625542,145.01,144.97,0.68]
[1764810125505,7.66,145.0,144.97,11.28097389]
[1764810125907,7.56568417,145.02,144.98,0.68]
[1764810126105,7.66,145.01,144.98,0.68]
[1764810126805,8.33,145.01,144.98,0.68]
[1764810127121,25.82720726,145.01,144.98,0.68]
[1764810127325,11.27097389,145.0,144.96,8.80994492]
[1764810127705,10.60097389,144.97,144.89,7.86]
[1764810127906,7.66,144.96,144.93,8.80994492]
[1764810128415,0.67,144.95,144.93,8.80994492]
[1764810128601,0.67,144.95,144.92,8.80994492]
[1764810129020,0.67,144.95,144.92,9.48994492]
[1764810129223,0.67,144.95,144.9,8.80994492]
[1764810129224,10.60097389,144.94,144.9,8.80994492]
[1764810129429,18.26097389,144.93,144.9,8.80994492]
[1764810129806,0.67,144.92,144.89,0.2]
[1764810130010,7.66,144.94,144.91,10.60097389]
[1764810130207,7.66,144.94,144.92,8.80994492]
[1764810130414,7.66,144.94,144.92,9.48994492]
[1764810130918,7.66,144.94,144.91,8.80994492]
[1764810131317,7.66,144.94,144.91,9.48994492]
[1764810132228,8.33,144.94,144.91,15.71064277]
[1764810132524,10.60097389,144.96,144.91,26.31161666]
[1764810132703,7.66,144.95,144.92,0.66]
[1764810133807,0.72,144.94,144.91,15.71064277]
[1764810134211,11.32097389,144.94,144.91,15.71075461]
[1764810135313,0.72,144.94,144.91,15.71075461]
[1764810135835,25.16008994,144.95,144.91,16.37075461]
[1764810136128,25.88008994,144.95,144.91,16.37075461]
[1764810136349,10.60097389,144.94,144.91,8.80994492]
[1764810136515,0.72,144.94,144.89,0.86]
[1764810136706,7.66,144.93,144.9,9.46994492]
[1764810137112,7.66,144.93,144.91,0.66]
[1764810138039,7.66,144.93,144.91,7.56072264]
[1764810138423,7.66,144.93,144.92,9.46994492]
[1764810139409,7.66,144.93,144.92,16.37030373]
[1764810139848,7.66,144.93,144.89,16.508864]
[1764810140015,14.55991821,144.93,144.9,0.66]
[1764810140218,25.1608921,144.93,144.89,0.2]
[1764810140414,10.60097389,144.91,144.89,0.2]
[1764810140744,11.32097389,144.92,144.89,0.2]
[1764810140912,7.66,144.91,144.89,9.00994492]
[1764810141318,7.66,144.91,144.89,16.57163455]
[1764810142442,10.60097389,144.93,144.89,15.91163455]
[1764810142634,7.66,144.92,144.9,0.66]
[1764810142938,7.66,144.92,144.9,11.26097389]
[1764810143335,7.66,144.92,144.91,0.66]
[1764810143739,7.66,144.92,144.91,9.46994492]
[1764810144128,7.66,144.92,144.91,8.80994492]
[1764810144328,7.66,144.92,144.89,7.76168963]
[1764810144523,7.66,144.92,144.89,18.36266352]
[1764810144841,7.66,144.92,144.9,20.07091881]
[1764810145946,7.66,144.92,144.9,9.46994492]
[1764810146448,7.66,144.92,144.9,16.37109708]
[1764810146825,16.308864,144.96,144.9,22.57104236]
[1764810147031,7.66,144.95,144.92,15.6698902]
[1764810147231,6.85994528,144.93,144.9,6.90115216]
[1764810147437,14.51994528,144.92,144.89,0.2]
[1764810147846,7.57994528,144.91,144.89,0.2]
[1764810148229,0.72,144.9,144.89,0.2]
[1764810148626,14.48125652,144.9,144.89,0.2]
[1764810150339,7.62131124,144.9,144.89,0.2]
[1764810150527,14.48125652,144.9,144.89,0.2]
[1764810151638,7.66,144.9,144.89,0.2]
[1764810155328,15.23994528,144.9,144.89,0.2]
[1764810156631,7.57994528,144.92,144.89,7.10175456]
[1764810156830,7.66,144.91,144.89,7.10175456]
[1764810158737,7.66,144.91,144.89,0.2]
[1764810158943,14.51994528,144.91,144.89,0.2]
[1764810159154,7.57994528,144.9,144.89,0.2]
[1764810160037,0.72,144.9,144.89,0.2]
[1764810160238,7.57994528,144.9,144.89,0.2]
[1764810160934,14.48125652,144.9,144.89,0.2]
[1764810162437,10.18416405,144.9,144.89,0.2]
[1764810165167,36.74443929,144.9,144.89,0.2]
[1764810166555,34.15302805,144.9,144.89,0.2]
[1764810168557,33.43302805,144.9,144.89,0.2]
[1764810168736,34.10302805,144.9,144.89,0.2]
[1764810170437,33.43302805,144.9,144.89,0.2]
[1764810170839,34.10302805,144.9,144.89,0.2]
[1764810172459,30.87017524,144.9,144.89,0.2]
[1764810172661,33.43302805,144.9,144.89,0.2]
[1764810173169,30.87017524,144.9,144.89,0.2]
[1764810173341,16.308864,144.9,144.89,0.2]
[1764810173547,23.968864,144.9,144.89,0.2]
[1764810174543,17.91904733,144.94,144.89,3.47285281]
[1764810174847,14.5598827,144.93,144.89,10.37446902]
[1764810175045,14.5598827,144.93,144.9,3.27285281]
[1764810175240,14.5598827,144.93,144.9,0.71]
[1764810175448,15.2298827,144.93,144.9,0.71]
[1764810175648,0.67,144.98,144.93,8.80994492]
[1764810175868,7.66,144.97,144.95,2.56285281]
[1764810176256,7.66,144.97,144.94,3.27285281]
[1764810176558,14.55808576,144.97,144.94,3.27285281]
[1764810178369,7.66,144.97,144.95,2.56285281]
[1764810178567,7.66,144.97,144.95,3.27285281]
[1764810178876,14.55798386,144.97,144.95,2.56285281]
[1764810180872,0.67,144.96,144.94,2.56285281]
[1764810181278,0.67,144.96,144.93,2.56285281]
[1764810181478,16.308864,144.94,144.89,0.2]
[1764810181653,7.66,144.93,144.89,0.91]
[1764810181856,8.33,144.93,144.89,3.47285281]
[1764810182066,8.33,144.93,144.89,0.91]
[1764810182270,8.33,144.93,144.89,3.47285281]
[1764810182697,6.90035881,144.92,144.89,3.47285281]
[1764810183260,6.90035881,144.92,144.9,0.71]
[1764810183592,6.90035881,144.92,144.89,3.47285281]
[1764810185555,7.57035881,144.92,144.89,0.91]
[1764810185888,10.13321162,144.92,144.89,0.2]
[1764810186468,3.23285281,144.91,144.89,0.2]
[1764810186659,26.53171681,144.9,144.89,0.2]
[1764810186869,27.20171681,144.9,144.89,0.2]
[1764810187672,34.10302805,144.9,144.89,0.2]
[1764810188762,26.44302805,144.9,144.89,0.2]
[1764810188965,34.10302805,144.9,144.89,0.2]
[1764810190086,26.44302805,144.9,144.89,0.2]
[1764810190284,23.968864,144.9,144.89,0.2]
[1764810190982,23.968864,144.9,144.89,0.91]
[1764810191295,7.66,144.9,144.89,0.2]
[1764810193969,7.66,144.9,144.89,0.87]
[1764810194294,14.56131124,144.9,144.89,0.2]
[1764810194504,7.66,144.9,144.89,0.87]